Cogmind - Beta 12 @@@ ROGUE MODE // 2023.04.09 @ 20:56:20 Player: Mr Goldstein Result: Destroyed by G-50 Soldier with Heavy Laser Performance ------------- Evolutions (4) 2000 Regions Visited (7) 1400 Robots Destroyed (0) 0 Value Destroyed (0) 0 Prototype IDs (23) 460 Alien Tech Used (0) 0 Bonus (1439) 1439 TOTAL SCORE: 5299 Bonus ------- Pacifist 1125 Follower Combat Kills 14 Aligned with FarCom 300 Cogmind --------- Core Integrity 0/850 Matter 112/300 Energy 98/100 System Corruption 0% Temperature Cool (54) Movement Core (50) Location -6/Factory Parts ------- > --- POWER (1) -------- (None) > --- PROPULSION (2) --- (None) > --- UTILITY (10) ----- Advanced Terrain Scan Processor System Shield > --- WEAPON (2) ------- (None) > --- INVENTORY (5) ---- Advanced Terrain Scanner Trap Reconfigurator Peak State ------------ > --- POWER ------------ (None) > --- PROPULSION ------- (None) > --- UTILITY ---------- Advanced Terrain Scanner Advanced Terrain Scan Processor Trap Reconfigurator > --- WEAPON ----------- Improved Datajack > --- INVENTORY -------- ECM Suite [Rating: 21] Favorites ----------- Power None Propulsion None Utility Advanced Terrain Scan Processor Device Advanced Terrain Scanner Processor Advanced Terrain Scan Processor Hackware System Shield Weapon Improved Datajack Special Melee Weapon Improved Datajack Build | -11 -10 -10 -10 -9 -8 -7 -6 ------- Run | Jun Mat Min Exi Min Mat Fac Fac Slots Evolved 8 | . . . . . 4 2 2 Power . | . . . . . . . . Propulsion . | . . . . . . . . Utility 8 | . . . . . 4 2 2 Weapon . | . . . . . . . . Parts Attached 7 | . . . . . . 1 6 Power . | . . . . . . . . Engine . | . . . . . . . . Core . | . . . . . . . . Reactor . | . . . . . . . . Propulsion . | . . . . . . . . Treads . | . . . . . . . . Leg . | . . . . . . . . Wheel . | . . . . . . . . Hover . | . . . . . . . . Flight . | . . . . . . . . Utility 6 | . . . . . . 1 5 Device 4 | . . . . . . 1 3 Storage . | . . . . . . . . Processor 1 | . . . . . . . 1 Hackware 1 | . . . . . . . 1 Protection . | . . . . . . . . Artifact . | . . . . . . . . Weapon 1 | . . . . . . . 1 Energy Gun . | . . . . . . . . Energy Cannon . | . . . . . . . . Ballistic Gun . | . . . . . . . . Ballistic Cannon . | . . . . . . . . Launcher . | . . . . . . . . Special Weapon . | . . . . . . . . Impact Weapon . | . . . . . . . . Slashing Weapon . | . . . . . . . . Piercing Weapon . | . . . . . . . . Special Melee Weapon 1 | . . . . . . . 1 Unidentified Prototypes . | . . . . . . . . Parts Lost 2 | . . . . . . . 2 Power . | . . . . . . . . Propulsion . | . . . . . . . . Utility 1 | . . . . . . . 1 Weapon 1 | . . . . . . . 1 Highest Loss Streak 2 | . . . . . . . 2 To Critical Strikes . | . . . . . . . . Average Slot Usage (%) 6 | . . . . . . 4 21 Device 2 | . . . . . . 4 6 Processor 1 | . . . . . . . 5 Hackware 1 | . . . . . . . 3 Special Melee Weapon 1 | . . . . . . . 3 Naked Turns 668 | . 42 197 126 174 81 48 . Heaviest Build 4 | . . . . . . 2 4 Greatest Support 3 | 3 3 3 3 3 3 3 3 Greatest Overweight (x) 1 | . . . . . . . 1 Average Overweight (x) . | . . . . . . . . Largest Inventory Capacity 5 | 5 5 5 5 5 5 5 5 Average Capacity 5 | 5 5 5 5 5 5 5 5 Most Carried 3 | . . . 1 1 1 2 3 Average Carried 1 | . . . . 1 1 1 1 Final Capacity 5 | 5 5 5 5 5 5 5 5 Final Carried 2 | . . . 1 1 1 2 2 Class Distribution -------------------- 79% | Mutant 20% | Scout Dominant Class ---------------- Mutant | -10/Materials Mutant | -10/Mines Mutant | -10/Exiles Mutant | -9/Mines Mutant | -8/Materials Mutant | -7/Factory Scout | -6/Factory Resources | -11 -10 -10 -10 -9 -8 -7 -6 ----------- Run | Jun Mat Min Exi Min Mat Fac Fac Matter Collected 72 | . . 15 . 57 . . . Remotely . | . . . . . . . . Salvage Created . | . . . . . . . . Parts . | . . . . . . . . Haulers Intercepted . | . . . . . . . . Recyclers Shooed . | . . . . . . . . Parts Field Recycled . | . . . . . . . . Retrieved Matter . | . . . . . . . . Parts Self-Destructed . | . . . . . . . . Prevented . | . . . . . . . . Kills | -11 -10 -10 -10 -9 -8 -7 -6 ------- Run | Jun Mat Min Exi Min Mat Fac Fac Combat Hostiles Destroyed . | . . . . . . . . Classes Destroyed . | . . . . . . . . Best Kill Streak . | . . . . . . . . Combat Bots Only . | . . . . . . . . Max Kills in Single Turn . | . . . . . . . . Gunslinging . | . . . . . . . . Exploded . | . . . . . . . . Melee . | . . . . . . . . Uniques/NPCs Destroyed . | . . . . . . . . Combat | -11 -10 -10 -10 -9 -8 -7 -6 -------- Run | Jun Mat Min Exi Min Mat Fac Fac Damage Taken 1045 | . . 45 . 51 35 . 914 Core 985 | . . 45 . 51 35 . 854 Absorbed by Shields . | . . . . . . . . Core Remaining (%) 88 | 100 . . . 61 93 100 . Volleys Fired . | . . . . . . . . Largest . | . . . . . . . . Hottest . | . . . . . . . . Shots Fired . | . . . . . . . . Gun . | . . . . . . . . Cannon . | . . . . . . . . Launcher . | . . . . . . . . Special . | . . . . . . . . Kinetic . | . . . . . . . . Thermal . | . . . . . . . . Explosive . | . . . . . . . . Electromagnetic . | . . . . . . . . Robot Hit Streak . | . . . . . . . . Robot Miss Streak . | . . . . . . . . Penetration Max . | . . . . . . . . Secondary Targets . | . . . . . . . . Shots Hit Robots . | . . . . . . . . Core Hits . | . . . . . . . . Critical Kills . | . . . . . . . . Critical Parts Destroyed . | . . . . . . . . Critical Strikes . | . . . . . . . . Melee Attacks . | . . . . . . . . Impact . | . . . . . . . . Slashing . | . . . . . . . . Piercing . | . . . . . . . . Sneak Attacks . | . . . . . . . . Combat Hostiles . | . . . . . . . . Follow-up Attacks . | . . . . . . . . Damage Inflicted . | . . . . . . . . Guns . | . . . . . . . . Cannons . | . . . . . . . . Explosions . | . . . . . . . . Melee . | . . . . . . . . Ramming . | . . . . . . . . Kinetic . | . . . . . . . . Thermal . | . . . . . . . . Explosive . | . . . . . . . . Electromagnetic . | . . . . . . . . Impact . | . . . . . . . . Slashing . | . . . . . . . . Piercing . | . . . . . . . . Highest Corruption 1 | . . . . . . 1 . Average Corruption 1 | . . . . . . 1 . Corruption Purged . | . . . . . . . . Corruption Blocked . | . . . . . . . . Overload Shots . | . . . . . . . . Overflow Damage . | . . . . . . . . Projectiles . | . . . . . . . . Explosions . | . . . . . . . . Melee . | . . . . . . . . Knockbacks . | . . . . . . . . Impact . | . . . . . . . . Kinetic . | . . . . . . . . Secondary . | . . . . . . . . Self-Inflicted Damage . | . . . . . . . . Shots . | . . . . . . . . Rammed . | . . . . . . . . Targets Rammed . | . . . . . . . . Kicked . | . . . . . . . . Crushed . | . . . . . . . . Highest Temperature 38 | . . . . . . . 38 Average Temperature 19 | . . . . . . . 19 Received Heat Transfer 252 | . . . . 6 . . 246 Siege Activations . | . . . . . . . . Robots Corrupted . | . . . . . . . . Combat Hostiles . | . . . . . . . . Parts Fried . | . . . . . . . . Impact Corruptions . | . . . . . . . . Robots Melted . | . . . . . . . . Combat Hostiles . | . . . . . . . . Parts Melted . | . . . . . . . . Heat Transferred . | . . . . . . . . Parts Sabotaged . | . . . . . . . . Parts Stolen . | . . . . . . . . Parts Stripped . | . . . . . . . . Power Chain Reactions . | . . . . . . . . Missiles Intercepted . | . . . . . . . . Alert | -11 -10 -10 -10 -9 -8 -7 -6 ------- Run | Jun Mat Min Exi Min Mat Fac Fac Peak Influence 150 | . 30 84 . 75 44 79 150 Initial 38 | . . 11 . . 29 19 38 Average 44 | . 17 34 . 36 33 25 74 Maximum Alert Level . | . . . . . . . . Low Security (%) 100 | 100 100 100 . 100 100 100 100 Level 1 . | . . . . . . . . Level 2 . | . . . . . . . . Level 3 . | . . . . . . . . Level 4 . | . . . . . . . . Level 5 . | . . . . . . . . High Security . | . . . . . . . . Max Security . | . . . . . . . . Squads Dispatched 2 | . . . . . . . 2 Investigation 1 | . . . . . . . 1 Extermination . | . . . . . . . . Reinforcement 1 | . . . . . . . 1 Assault . | . . . . . . . . Garrison . | . . . . . . . . Intercept . | . . . . . . . . Searches Triggered . | . . . . . . . . Construction Impeded . | . . . . . . . . Haulers Reinforced . | . . . . . . . . Active Scanning Responses . | . . . . . . . . Cargo Convoy Interrupts . | . . . . . . . . Stealth | -11 -10 -10 -10 -9 -8 -7 -6 --------- Run | Jun Mat Min Exi Min Mat Fac Fac Distress Signals 2 | . . . . . . 1 1 Communications Jammed . | . . . . . . . . Distress Signals . | . . . . . . . . Times Spotted 36 | . 2 3 . 7 5 4 15 Peak Tracking Total 15 | . 2 3 . 3 5 5 15 Tactical Retreats 5 | . . . . 2 . . 3 Traps | -11 -10 -10 -10 -9 -8 -7 -6 ------- Run | Jun Mat Min Exi Min Mat Fac Fac Traps Triggered 1 | . . . . . . 1 . Indirectly . | . . . . . . . . Trap Hack Attempts . | . . . . . . . . Triggered . | . . . . . . . . Disarmed . | . . . . . . . . Reprogrammed . | . . . . . . . . Reused . | . . . . . . . . Traps Reconfigurated 1 | . . . . . . . 1 Traps Extracted . | . . . . . . . . Installed . | . . . . . . . . Triggered . | . . . . . . . . Machines | -11 -10 -10 -10 -9 -8 -7 -6 ---------- Run | Jun Mat Min Exi Min Mat Fac Fac Machines Disabled . | . . . . . . . . Max in Single Turn . | . . . . . . . . Machines Repaired . | . . . . . . . . Machines Sabotaged . | . . . . . . . . Overloaded Fab Kills . | . . . . . . . . Hacking | -11 -10 -10 -10 -9 -8 -7 -6 --------- Run | Jun Mat Min Exi Min Mat Fac Fac Machines Accessed 8 | . . 1 1 . 2 1 3 Terminals 6 | . . 1 . . 2 . 3 Fabricators 1 | . . . . . . 1 . Repair Stations . | . . . . . . . . Recycling Units . | . . . . . . . . Scanalyzers . | . . . . . . . . Garrison Access . | . . . . . . . . Total Hacks 18 | . . 3 1 . 4 3 7 Successful 5 | . . . 1 . . . 4 Failed 13 | . . 3 . . 4 3 3 Catastrophic 6 | . . 2 . . 1 1 2 Database Lockouts . | . . . . . . . . Manual 16 | . . 3 1 . 4 3 5 Terminals 14 | . . 3 . . 4 . 7 Fabricators 3 | . . . . . . 3 . Repair Stations . | . . . . . . . . Recycling Units . | . . . . . . . . Scanalyzers . | . . . . . . . . Garrison Access . | . . . . . . . . Terminal Hacks 2 | . . . 1 . . . 1 Branch Access Points 1 | . . . . . . . 1 EX-Prototype ID Bank 1 | . . . 1 . . . . Fabricator Hacks . | . . . . . . . . Repair Station Hacks . | . . . . . . . . Recycling Unit Hacks . | . . . . . . . . Scanalyzer . | . . . . . . . . Garrison Access Hacks . | . . . . . . . . Unauthorized Hacks 3 | . . . . . . . 3 Terminals 3 | . . . . . . . 3 Botnet 3 | . . . . . . . 3 Fabricators . | . . . . . . . . Repair Stations . | . . . . . . . . Recycling Units . | . . . . . . . . Scanalyzers . | . . . . . . . . Garrison Access . | . . . . . . . . Data Cores Recovered . | . . . . . . . . Used . | . . . . . . . . Hacking Detections 6 | . . 1 . . 2 1 2 Full Trace Events 2 | . . 1 . . . . 1 Feedback Events . | . . . . . . . . Feedback Blocked . | . . . . . . . . Robot Schematics Acquired . | . . . . . . . . Robots Built . | . . . . . . . . Authchips . | . . . . . . . . Time . | . . . . . . . . Total Robot Build Rating . | . . . . . . . . Part Schematics Acquired . | . . . . . . . . Parts Built . | . . . . . . . . Authchips . | . . . . . . . . Time . | . . . . . . . . Total Part Build Rating . | . . . . . . . . Parts Repaired . | . . . . . . . . Time . | . . . . . . . . Parts Recycled . | . . . . . . . . Recycled Matter . | . . . . . . . . Retrieved Matter . | . . . . . . . . Retrieved Components . | . . . . . . . . Parts Scanalyzed . | . . . . . . . . Part Schematics Acquired . | . . . . . . . . Parts Damaged . | . . . . . . . . Bothacking | -11 -10 -10 -10 -9 -8 -7 -6 ------------ Run | Jun Mat Min Exi Min Mat Fac Fac Used RIF Installer . | . . . . . . . . Robots Hacked . | . . . . . . . . Non-combat . | . . . . . . . . Combat . | . . . . . . . . Robot Hacks Applied . | . . . . . . . . Relay Couplers Released . | . . . . . . . . Fabnet Peak Effective % . | . . . . . . . . Robots Rewired . | . . . . . . . . Allies Hacked . | . . . . . . . . Hacks Repelled . | . . . . . . . . Allies | -11 -10 -10 -10 -9 -8 -7 -6 -------- Run | Jun Mat Min Exi Min Mat Fac Fac Total Allies 1 | . . 1 . . . . . Largest Group 1 | . . 1 . . . . . Highest-Rated Group 31 | . . 31 . . . . . Highest-Rated Ally 31 | . . 31 . . . . . Total Orders . | . . . . . . . . Ally Attacks 5 | . . 5 . . . . . Total Damage 86 | . . 86 . . . . . Kills 3 | . . 3 . . . . . Allies Corrupted . | . . . . . . . . Allies Melted . | . . . . . . . . Intel | -11 -10 -10 -10 -9 -8 -7 -6 ------- Run | Jun Mat Min Exi Min Mat Fac Fac Robot Analysis Total . | . . . . . . . . Derelict Logs Recovered 2 | . . 1 . 1 . . . Drone Launches . | . . . . . . . . Drone Recoveries . | . . . . . . . . Exploration | -11 -10 -10 -10 -9 -8 -7 -6 ------------- Run | Jun Mat Min Exi Min Mat Fac Fac Turns Passed 1090 | 12 42 197 126 174 81 174 284 Spaces Moved 1812 | 23 83 364 247 239 127 247 482 Core 1812 | 23 83 364 247 239 127 247 482 Treads . | . . . . . . . . Legs . | . . . . . . . . Wheels . | . . . . . . . . Hover . | . . . . . . . . Flight . | . . . . . . . . Fastest Speed 50 | 50 50 50 50 50 50 50 50 Average Speed 50 | 50 50 50 50 50 50 50 50 Slowest Speed 100 | 50 50 50 50 50 50 50 100 Overloaded Moves . | . . . . . . . . Propulsion Burnouts . | . . . . . . . . Robots Hopped . | . . . . . . . . Cave-ins Triggered . | . . . . . . . . Exploration Rate (%) 35 | 3 20 92 63 65 18 10 13 Regions Visited 7 Branch Regions 3 Pre-discovered Areas 1 | . . . . 1 . . . Known Exits Taken 1 | . . . . 1 . . . Unknown Exits Taken 6 | 1 1 1 1 . 1 1 . Scrap Searched 3 | . . 1 . 2 . . . Spaces Dug . | . . . . . . . . Terrain Destroyed . | . . . . . . . . Melee . | . . . . . . . . Projectile . | . . . . . . . . AOE . | . . . . . . . . Terrain Rammed . | . . . . . . . . Walls Destroyed . | . . . . . . . . Machines Disabled . | . . . . . . . . Actions | -11 -10 -10 -10 -9 -8 -7 -6 --------- Run | Jun Mat Min Exi Min Mat Fac Fac Total 1987 | 22 82 378 248 292 143 296 526 Wait 166 | . . 15 1 54 17 47 32 Move 1805 | 22 82 363 246 238 126 246 482 Hop . | . . . . . . . . Pick Up 6 | . . . 1 . . 2 3 Fast Attach . | . . . . . . . . Attach 7 | . . . . . . 1 6 Detach 3 | . . . . . . . 3 Swap . | . . . . . . . . Drop . | . . . . . . . . Fire . | . . . . . . . . Melee . | . . . . . . . . Ram . | . . . . . . . . Kick . | . . . . . . . . Crush . | . . . . . . . . Escape Stasis . | . . . . . . . . Rewire . | . . . . . . . . Trap . | . . . . . . . . Miscellaneous . | . . . . . . . . Route ------- -11/Junkyard -10/Materials -10/Mines (discovered 3 exits: [*Mat x2] / *Exi) -10/Exiles (discovered 2 exits: [*Min x2]) -9/Mines -8/Materials -7/Factory -6/Factory (discovered 2 exits: Low x2) History --------- Turn | Location | Event 5 | -11/Junkyard | Discovered new exit (range 13) 13 | -11/Junkyard | Entered Materials 43 | -10/Materials | Discovered new exit (range 15) 55 | -10/Materials | Entered Mines 61 | -10/Mines | Discovered new exit (range 3) 68 | -10/Mines | Received a Mining Laser from a helpful Derelict 190 | -10/Mines | Discovered new exit (range 12) 250 | -10/Mines | Deemed a non-threat by the Exiles lab entrance 250 | -10/Mines | Discovered new exit (range 5) 252 | -10/Mines | Entered Exiles 265 | -10/Exiles | Discovered new exit (range 15) 273 | -10/Exiles | Met 8R-AWN 280 | -10/Exiles | Met EX-HEX 294 | -10/Exiles | Met EX-BIN 301 | -10/Exiles | Aligned with FarCom system 301 | -10/Exiles | Given EX-Vault access code 305 | -10/Exiles | Build established: Mutant 313 | -10/Exiles | Opened EX-Vault 318 | -10/Exiles | Found Trap Reconfigurator 331 | -10/Exiles | Warned to stay clear of 0b10 Research branches 349 | -10/Exiles | Met EX-DEC 373 | -10/Exiles | Discovered new exit (range 10) 378 | -10/Exiles | Left Exiles lab with Trap Reconfigurator 378 | -10/Exiles | Entered Mines 447 | -9/Mines | A weapon hastily lodged in a ceiling crevice suddenly fell to the ground 478 | -9/Mines | Learned location of Storage (-9) 537 | -9/Mines | Identified exit to Materials 552 | -9/Mines | Entered Materials 552 | -8/Materials | Evolved 4 slots: Utility x4 625 | -8/Materials | Discovered new exit (range 16) 633 | -8/Materials | Entered Factory 633 | -7/Factory | Evolved 2 slots: Utility x2 801 | -7/Factory | Discovered new exit (range 7) 807 | -7/Factory | Entered another Factory area 807 | -6/Factory | Evolved 2 slots: Utility x2 906 | -6/Factory | Identified exit to Lower Caves 1084 | -6/Factory | Core integrity fell below 50% 1089 | -6/Factory | Core integrity fell below 20% 1091 | -6/Factory | Destroyed by G-50 Soldier with Heavy Laser Last Messages --------------- Terminal linked with 2 systems. Awaiting botnet instructions. 00963_ ALERT: Suspicious activity at Terminal F016. Dispatching Investigation squad. 01055_ Imp. Datajack destroyed. 01067_ Slug penetrates Wall. 01067_ Penetrated by Slug. 01070_ ECM Suite destroyed. 01071_ Penetrated by Slug. 01076_ O-24 Administrator: "IFF HANDSHAKE FAILED. SECURING TERMINAL." 01076_ O-24 Administrator sends out distress signal. 01077_ Slug penetrates O-24 Administrator. 01077_ Penetrated by Slug. 01081_ Critical hit (Burn: +37). 01082_ T-07 Excavator destroyed. 01084_ Penetrated by Slug. 01084_ Slug penetrates Wall. 01086_ ALERT: Security rotation in progress. 01086_ ALERT: Hostiles spotted, dispatching reinforcements to Terminal F012. 01087_ Critical hit (Burn: +37). Map ----- +----------------------------------------------------+ | ?????????????????????????????????????????????????? | | ?????????????????????????????????????????????????? | | ?????????????????????????????????????????????????? | | ?????????????????????????????????????????????????? | | ?????????????????????????????????????????????????? | | ?????????????????????????????????????????????????? | | ?????????????????????????????????????????????????? | | ?????????????????????????????????????????????????? | | ?????????????????????????????????????????????????? | | ?????????????????????????????????????????????????? | | ?????????????????????????????????????????????????? | | ?????????????????????????????????????????????????? | | ?????????????????????????????????????????????????? | | ?????????????????????????????????????????????????? | | ?????????????????????????????????????????????????? | | ?????????????????????#####???????????????????????? | | ???????????????????? ??????????????????????? | | ??????????????????? T ?????????????????????? | | ??????????????????# #????????????????????? | | ??????????????????# #????????????????????? | | ??????????????????# """ """ #????????????????????? | | ??????????????????# """ """ #????????????????????? | | ??????????????????? """ """ ?????????????????????? | | ????????????????????? ???????????????????????? | | ####+######+###########;##########???????????????? | | R u @ R ????????? | | ????????? | | ????????? | | lg k ?????????? | | g g k A ?????????? | | ###+#######+### g g###+#############+#??????????? | | ????? ????????# g #????????????????????????????? | | ??? ? ????????# g #????????????????????????????? | | ??? ????????? # #????????????????????????????? | | ??????????????# #????????????????????????????? | | ?????? ???? ?# #????????????????????????????? | | ? ?? ?????? # #????????????????????????????? | | #?????######??# #????????????????????????????? | | ?#????? ?# s #????????????????????????????? | | ?##??#?"""" ?# #????????????????????????????? | | ?###?? ""R" # #????????????????????????????? | | ??#??# "" " # #????????????????????????????? | | ###??# + #???? ???????????????????????? | | ?##??# """ # #? ???"??????????????????????? | | ###?## """ ] # #????"??"????#???????????????? | | ??#??# """ ?# #????"????? ?????????????????? | | ##??## # # ??????????????????????????? | | ########?# #? ? ?? ??? ????????????????? | | """ #?### #### + ? ?? ??? ?????#????????????? | | """ ########?# # ??? ?? ? ??#?????????#????? | +----------------------------------------------------+ Best States ------------- Heat Dissipation 37 Energy Generation 5 Energy Capacity 100 Matter Stores 172 Matter Capacity 300 Sight Range 16 Terrain Scan Range 20 Terrain Scan Density 210 ECM Strength 1 Evasion (%) 50 Defensive Hacking 10 Item Schematics ----------------- None Robot Schematics ------------------ None Fabricated ------------ Nothing Alien Tech Used ----------------- None Achievements -------------- None Challenges ------------ None Game ------ Seed CombatShadingMegatreads Manual? 0 Play Time 00:12:56 Cumulative 88.4 hours Start 2023.04.09 @ 20:44:28 End 2023.04.09 @ 20:56:20 Sessions 1 Manual Loads 0 Difficulty Rogue Special Mode None Game No. 118 Rogue 118 Adventurer 0 Explorer 0 Win Type - Total 2 Types 2/0/0/0/0/0/0/0/0 Lore% 53 Gallery% 55 Achievement% 45 Wizard Run 0 Options --------- ASCII 0 Keyboard 0 Movement Arrows Keybinds 0 Fullscreen 1 Font 12/Smallcaps Map View 83x54 Tactical HUD 1 Map Filters NONE Filters NONE Steam 1 RUN: 7463cc83-a347-40f8-ba45-5b79612412d9